fUSD/lending_fUSD_20241121
["ID","MTS","AMOUNT","RATE_DAILY","PERIOD"]
[342917443,1732204254789,-500.0,0.00040547,11]
[342917444,1732204254798,-610.74,0.00040547,11]
[342917445,1732204254807,-500.0,0.00040547,11]
[342917446,1732204254817,-913.27,0.00040547,11]
[342917447,1732204254826,-500.0,0.00040547,11]
[342917448,1732204254835,-500.0,0.00040547,11]
[342917449,1732204254844,-500.0,0.00040547,11]
[342917450,1732204254853,-500.0,0.00040547,11]
[342917451,1732204254863,-500.0,0.00040547,11]
[342917452,1732204254872,-500.0,0.00040547,11]
[342917453,1732204254884,-500.0,0.00040547,11]
[342917454,1732204254895,-500.0,0.00040547,11]
[342917455,1732204254905,-500.0,0.00040547,11]
[342917456,1732204254914,-500.0,0.00040547,11]
[342917457,1732204254923,-549.48,0.00040547,11]
[342917458,1732204254934,-500.0,0.00040547,11]
[342917459,1732204254943,-500.0,0.00040547,11]
[342917460,1732204254952,-696.29,0.00040547,11]
[342917461,1732204254962,-1257.78,0.00040547,11]
[342917462,1732204254972,-500.0,0.00040547,11]
[342917463,1732204254981,-500.0,0.00040547,11]
[342917464,1732204254991,-683.63,0.00040547,11]
[342917465,1732204255000,-500.0,0.00040547,11]
[342917466,1732204255009,-725.57,0.00040547,11]
[342917467,1732204255019,-500.0,0.00040547,11]
[342917468,1732204255028,-500.0,0.00040547,11]
[342917469,1732204255038,-500.0,0.00040547,11]
[342917470,1732204255048,-514.9,0.00040547,11]
[342917471,1732204255057,-500.0,0.00040547,11]
[342917472,1732204255066,-500.0,0.00040547,11]
[342917473,1732204255075,-500.0,0.00040547,11]
[342917474,1732204255084,-1188.15,0.00040547,11]
[342917475,1732204255094,-622.83,0.00040547,11]
[342917476,1732204255103,-777.99,0.00040547,11]
[342917477,1732204255114,-500.0,0.00040547,11]
[342917478,1732204255124,-500.0,0.00040547,11]
[342917479,1732204255141,-532.48,0.00040547,11]
[342917480,1732204255151,-500.0,0.00040547,11]
[342917481,1732204255160,-500.0,0.00040547,11]
[342917482,1732204255170,-1299.26,0.00040547,11]
[342917483,1732204255179,-500.0,0.00040547,11]
[342917484,1732204255190,-650.76,0.00040547,11]
[342917485,1732204255199,-578.77,0.00040547,11]
[342917486,1732204255207,-500.0,0.00040547,11]
[342917487,1732204255216,-1089.51,0.00040547,11]
[342917488,1732204255225,-500.0,0.00040547,11]
[342917489,1732204255234,-381.5331927,0.00040547,11]
[342917490,1732204255243,-500.0,0.00040547,11]
[342917491,1732204255252,-514.78,0.00040547,11]
[342917492,1732204255261,-500.0,0.00040547,11]
[342917493,1732204255270,-596.04,0.00040547,11]
[342917494,1732204255280,-500.0,0.00040547,11]
[342917495,1732204255290,-500.0,0.00040547,11]
[342917496,1732204255299,-1063.94,0.00040547,11]
[342917497,1732204255308,-640.18,0.00040547,11]
[342917498,1732204255317,-500.0,0.00040547,11]
[342917499,1732204255326,-500.0,0.00040547,11]
[342917500,1732204255335,-501.52,0.00040547,11]
[342917501,1732204255344,-3521.01,0.00040547,11]
[342917502,1732204255353,-1592.31,0.00040547,11]
[342917503,1732204255362,-500.0,0.00040547,11]
[342917504,1732204255371,-500.0,0.00040547,11]
[342917505,1732204255386,-585.43,0.00040547,11]
[342917506,1732204255398,-500.0,0.00040547,11]
[342917507,1732204255409,-500.0,0.00040547,11]
[342917508,1732204255419,-500.0,0.00040547,11]
[342917509,1732204255430,-487.08628965,0.00040547,11]
[342917510,1732204255440,-500.0,0.00040547,11]
[342917511,1732204255451,-500.0,0.00040547,11]
[342917512,1732204255461,-788.71,0.00040547,11]
[342917513,1732204255472,-500.0,0.00040547,11]
[342917514,1732204255481,-500.0,0.00040547,11]
[342917515,1732204255491,-500.0,0.00040547,11]
[342917516,1732204255500,-500.0,0.00040547,11]
[342917517,1732204255509,-500.0,0.00040547,11]
[342917518,1732204255519,-500.0,0.00040547,11]
[342917519,1732204255528,-500.0,0.00040547,11]
[342917520,1732204255537,-500.0,0.00040547,11]
[342917521,1732204255547,-500.0,0.00040547,11]
[342917522,1732204255556,-500.0,0.00040547,11]
[342917523,1732204255565,-500.0,0.00040547,11]
[342917524,1732204255574,-500.0,0.00040547,11]
[342917525,1732204255584,-295.12470157,0.00040547,11]
[342917526,1732204255594,-500.0,0.00040547,11]
[342917527,1732204255604,-500.0,0.00040547,11]
[342917528,1732204255614,-502.31,0.00040547,11]
[342917529,1732204255624,-298.21539079,0.00040547,11]
[342917530,1732204255640,-1392.3,0.00040547,11]
[342917531,1732204255650,-500.0,0.00040547,11]
[342917532,1732204255659,-500.0,0.00040547,11]
[342917533,1732204255669,-570.76,0.00040547,11]
[342917534,1732204255679,-500.0,0.00040547,11]
[342917535,1732204255688,-1312.58,0.00040547,11]
[342917536,1732204255699,-500.0,0.00040547,11]
[342917537,1732204255708,-869.92,0.00040547,11]
[342917538,1732204255718,-9982.76,0.00040547,11]
[342917539,1732204255728,-500.0,0.00040547,11]
[342917540,1732204255738,-500.0,0.00040547,11]
[342917541,1732204255748,-605.74,0.00040547,11]
[342917542,1732204255758,-2162.36,0.00040547,11]
[342917543,1732204255768,-514.62,0.00040547,11]
[342917544,1732204255779,-500.0,0.00040547,11]
[342917545,1732204255788,-903.28,0.00040547,11]
[342917546,1732204255800,-706.27,0.00040547,11]
[342917547,1732204255810,-635.73,0.00040547,11]
[342917548,1732204255819,-500.0,0.00040547,11]
[342917549,1732204255829,-1528.23,0.00040547,11]
[342917550,1732204255838,-500.0,0.00040547,11]
[342917551,1732204255848,-500.0,0.00040547,11]
[342917552,1732204255857,-500.0,0.00040547,11]
[342917553,1732204255867,-500.0,0.00040547,11]
[342917554,1732204255876,-500.0,0.00040547,11]
[342917555,1732204255894,-483.36863943,0.00040547,11]
[342917556,1732204255904,-500.0,0.00040547,11]
[342917557,1732204255913,-500.0,0.00040547,11]
[342917558,1732204255922,-1090.43,0.00040547,11]
[342917559,1732204255931,-500.0,0.00040547,11]
[342917560,1732204255940,-500.0,0.00040547,11]
[342917561,1732204255950,-500.0,0.00040547,11]
[342917562,1732204255959,-500.0,0.00040547,11]
[342917563,1732204255968,-500.0,0.00040547,11]
[342917564,1732204255977,-500.0,0.00040547,11]
[342917565,1732204255986,-2907.09,0.00040547,11]
[342917566,1732204255995,-300.0,0.00040547,11]
[342917567,1732204256005,-617.69,0.00040547,11]
[342917568,1732204256014,-847.62,0.00040547,11]
[342917569,1732204256023,-500.0,0.00040547,11]
[342917570,1732204256032,-500.0,0.00040547,11]
[342917571,1732204256041,-500.0,0.00040547,11]
[342917572,1732204256050,-500.0,0.00040547,7]
[342917573,1732204256060,-500.0,0.00040547,11]
[342917574,1732204256069,-1049.63,0.00040547,11]
[342917575,1732204256078,-782.31,0.00040547,11]
[342917576,1732204256088,-500.0,0.00040547,11]
[342917577,1732204256097,-1201.62,0.00040547,11]
[342917578,1732204256109,-500.0,0.00040547,11]
[342917579,1732204256118,-500.0,0.00040547,11]
[342917580,1732204256128,-500.0,0.00040547,11]
[342917581,1732204256147,-753.49,0.00040547,11]
[342917582,1732204256157,-500.0,0.00040547,11]
[342917583,1732204256166,-500.0,0.00040547,11]
[342917584,1732204256175,-856.81,0.00040547,11]
[342917585,1732204256187,-500.0,0.00040547,11]
[342917586,1732204256196,-1928.55,0.00040547,11]
[342917587,1732204256206,-852.4,0.00040547,11]
[342917588,1732204256215,-2673.56,0.00040547,11]
[342917589,1732204256225,-578.58,0.00040547,11]
[342917590,1732204256234,-500.0,0.00040547,11]
[342917591,1732204256243,-500.0,0.00040547,11]
[342917592,1732204256252,-1196.41,0.00040547,11]
[342917593,1732204256261,-500.0,0.00040547,11]
[342917594,1732204256271,-658.66,0.00040547,11]
[342917595,1732204256280,-500.0,0.00040547,11]
[342917596,1732204256289,-1413.85,0.00040547,11]
[342917597,1732204256298,-3542.25,0.00040547,11]
[342917598,1732204256308,-500.0,0.00040547,11]
[342917599,1732204256317,-500.0,0.00040547,11]
[342917600,1732204256326,-500.0,0.00040547,11]
[342917601,1732204256335,-698.62,0.00040547,11]
[342917602,1732204256345,-500.0,0.00040547,11]
[342917603,1732204256355,-500.0,0.00040547,11]
[342917604,1732204256364,-1342.07,0.00040547,11]
[342917605,1732204256373,-2500.26,0.00040547,11]
[342917606,1732204256388,-500.0,0.00040547,11]
[342917607,1732204256398,-1062.88,0.00040547,11]
[342917608,1732204256407,-500.0,0.00040547,11]
[342917609,1732204256416,-500.0,0.00040547,11]
[342917610,1732204256426,-726.84,0.00040547,11]
[342917611,1732204256435,-500.0,0.00040547,11]
[342917612,1732204256444,-503.08431104,0.00040547,11]
[342917613,1732204256453,-686.36,0.00040547,11]
[342917614,1732204256463,-996.28,0.00040547,11]
[342917615,1732204256472,-530.63,0.00040547,11]
[342917616,1732204256481,-500.0,0.00040547,11]
[342917617,1732204256490,-623.27,0.00040547,11]
[342917618,1732204256500,-500.0,0.00040547,11]
[342917619,1732204256509,-500.0,0.00040547,11]
[342917620,1732204256518,-3668.1,0.00040547,11]
[342917621,1732204256527,-447.35862781,0.00040547,11]
[342917622,1732204256537,-903.26,0.00040547,11]
[342917623,1732204256547,-141.88569445,0.00040547,11]
[342917624,1732204256818,-358.11430555,0.00040547,11]
[342917625,1732204256828,-500.0,0.00040547,11]
[342917626,1732204256838,-1214.4,0.00040547,11]
[342917627,1732204256847,-500.0,0.00040547,11]
[342917628,1732204256856,-500.0,0.00040547,11]
[342917629,1732204256865,-1131.97,0.00040547,11]
[342917630,1732204256874,-476.73020937,0.00040547,11]
[342917631,1732204256888,-1008.95,0.00040547,11]
[342917632,1732204256897,-1747.29,0.00040547,11]
[342917633,1732204256906,-500.0,0.00040547,11]
[342917634,1732204256915,-665.4,0.00040547,11]
[342917635,1732204256924,-500.0,0.00040547,11]
[342917636,1732204256933,-500.0,0.00040547,11]
[342917637,1732204256942,-500.0,0.00040547,11]
[342917638,1732204256951,-530.21,0.00040547,11]
[342917639,1732204256961,-1798.83,0.00040547,11]
[342917640,1732204256970,-2143.77,0.00040547,11]
[342917641,1732204256980,-1113.58,0.00040547,11]
[342917642,1732204256989,-500.0,0.00040547,11]
[342917643,1732204256999,-500.0,0.00040547,11]
[342917644,1732204257008,-7402.61,0.00040547,2]
[342917645,1732204257017,-500.0,0.00040547,11]
[342917646,1732204257026,-11365.11,0.00040547,11]
[342917647,1732204257035,-631.63,0.00040547,11]
[342917648,1732204257044,-161.95252259,0.00040547,11]
[342917649,1732204257053,-2155.58,0.00040547,11]
[342917650,1732204257063,-165.42,0.00040633,2]
[342917651,1732204257072,-978.14,0.00040657,120]
[342917652,1732204257081,-150.0,0.00040663,2]
[342917653,1732204257090,-1300.0,0.000408,14]
[342917654,1732204257099,-3301.68859385,0.00040808,15]
[342917655,1732204257109,-764.59,0.0004082,11]
[342917656,1732204257121,-955.73,0.0004082,11]
[342917657,1732204257136,-500.0,0.00040821,11]
[342917658,1732204257145,-567.36,0.00040821,11]
[342917659,1732204257155,-500.0,0.00040821,11]
[342917660,1732204257164,-500.0,0.00040821,11]
[342917661,1732204257173,-518.08,0.00040821,11]
[342917662,1732204257182,-632.93837148,0.00040821,11]
[342917663,1732204257193,-500.0,0.00040821,11]
[342917664,1732204257202,-500.0,0.00040821,11]
[342917665,1732204257211,-500.0,0.00040821,11]
[342917666,1732204257220,-500.0,0.00040821,11]
[342917667,1732204257229,-500.0,0.00040821,11]
[342917668,1732204257238,-500.0,0.00040821,11]
[342917669,1732204257248,-500.0,0.00040821,11]
[342917670,1732204257257,-517.06,0.00040821,11]
[342917671,1732204257266,-500.0,0.00040821,11]
[342917672,1732204257275,-500.0,0.00040821,11]
[342917673,1732204257284,-540.07,0.00040821,11]
[342917674,1732204257293,-500.0,0.00040821,11]
[342917675,1732204257302,-500.0,0.00040821,11]
[342917676,1732204257312,-635.4,0.00040821,11]
[342917677,1732204257322,-500.0,0.00040821,11]
[342917678,1732204257331,-500.0,0.00040821,11]
[342917679,1732204257341,-500.0,0.00040821,11]
[342917680,1732204257350,-500.0,0.00040821,11]
[342917681,1732204257359,-500.0,0.00040821,11]
[342917682,1732204257368,-500.0,0.00040821,11]
[342917683,1732204257377,-629.21,0.00040821,11]
[342917684,1732204257391,-558.31,0.00040821,11]
[342917685,1732204257400,-500.0,0.00040821,11]
[342917686,1732204257409,-500.0,0.00040821,11]
[342917687,1732204257417,-500.0,0.00040821,11]
[342917688,1732204257426,-726.04,0.00040821,11]
[342917689,1732204257435,-500.0,0.00040821,11]
[342917690,1732204257444,-500.0,0.00040821,11]
[342917691,1732204257454,-674.21,0.00040821,11]
[342917692,1732204257463,-500.0,0.00040821,11]
[342917693,1732204257472,-810.27,0.00040821,11]
[342917694,1732204257482,-500.0,0.00040821,11]
[342917695,1732204257491,-524.02,0.00040821,11]
[342917696,1732204257500,-857.98,0.00040821,11]
[342917697,1732204257510,-500.0,0.00040821,11]
[342917698,1732204257519,-500.0,0.00040821,11]
[342917699,1732204257529,-500.0,0.00040821,11]
[342917700,1732204257539,-594.22,0.00040821,11]
[342917701,1732204257548,-786.75,0.00040821,11]
[342917702,1732204257558,-500.0,0.00040821,11]
[342917703,1732204257568,-629.47,0.00040821,11]
[342917704,1732204257577,-952.08,0.00040821,11]
[342917705,1732204257587,-796.66,0.00040821,11]
[342917706,1732204257596,-500.0,0.00040821,11]
[342917707,1732204257605,-610.74,0.00040821,11]
[342917708,1732204257614,-500.0,0.00040821,11]
[342917709,1732204257625,-913.27,0.00040821,11]
[342917710,1732204257639,-500.0,0.00040821,11]
[342917711,1732204257649,-500.0,0.00040821,11]
[342917712,1732204257658,-500.0,0.00040821,11]
[342917713,1732204257668,-500.0,0.00040821,11]
[342917714,1732204257678,-500.0,0.00040821,11]
[342917715,1732204257687,-500.0,0.00040821,11]
[342917716,1732204257696,-500.0,0.00040821,11]
[342917717,1732204257706,-500.0,0.00040821,11]
[342917718,1732204257715,-500.0,0.00040821,11]
[342917719,1732204257725,-234.87496237,0.00040821,11]
[342917720,1732204257734,-549.48,0.00040821,11]
[342917721,1732204257744,-500.0,0.00040821,11]
[342917722,1732204257754,-500.0,0.00040821,11]
[342917723,1732204257764,-696.29,0.00040821,11]
[342917724,1732204257773,-1257.78,0.00040821,11]
[342917725,1732204257782,-500.0,0.00040821,11]
[342917726,1732204257791,-500.0,0.00040821,11]
[342917727,1732204257801,-683.63,0.00040821,11]
[342917728,1732204257811,-500.0,0.00040821,11]
[342917729,1732204257820,-725.57,0.00040821,11]
[342917730,1732204257829,-500.0,0.00040821,11]
[342917731,1732204257838,-500.0,0.00040821,11]
[342917732,1732204257847,-500.0,0.00040821,11]
[342917733,1732204257856,-514.9,0.00040821,11]
[342917734,1732204257865,-500.0,0.00040821,11]
[342917735,1732204257873,-500.0,0.00040821,11]
[342917736,1732204257887,-500.0,0.00040821,11]
[342917737,1732204257896,-1188.15,0.00040821,11]
[342917738,1732204257905,-622.83,0.00040821,11]
[342917739,1732204257914,-777.99,0.00040821,11]
[342917740,1732204257923,-500.0,0.00040821,11]
[342917741,1732204257934,-500.0,0.00040821,11]
[342917742,1732204257943,-532.48,0.00040821,11]
[342917743,1732204257953,-500.0,0.00040821,11]
[342917744,1732204257963,-646.6822325,0.00040821,11]
[342917745,1732204257972,-1299.26,0.00040821,11]
[342917746,1732204257981,-500.0,0.00040821,11]
[342917747,1732204257990,-650.76,0.00040821,11]
[342917748,1732204258000,-578.77,0.00040821,11]
[342917749,1732204258009,-500.0,0.00040821,11]
[342917750,1732204258018,-1089.51,0.00040821,11]
[342917751,1732204258028,-500.0,0.00040821,11]
[342917752,1732204258037,-480.35453288,0.00040821,11]
[342917753,1732204258046,-514.78,0.00040821,11]
[342917754,1732204258056,-500.0,0.00040821,11]
[342917755,1732204258066,-596.04,0.00040821,11]
[342917756,1732204258075,-500.0,0.00040821,11]
[342917757,1732204258085,-500.0,0.00040821,11]
[342917758,1732204258094,-1063.94,0.00040821,11]
[342917759,1732204258104,-640.18,0.00040821,11]
[342917760,1732204258117,-500.0,0.00040821,11]
[342917761,1732204258127,-500.0,0.00040821,11]
[342917762,1732204258141,-501.52,0.00040821,11]
[342917763,1732204258152,-3521.01,0.00040821,11]
[342917764,1732204258161,-1592.31,0.00040821,11]
[342917765,1732204258171,-500.0,0.00040821,11]
[342917766,1732204258181,-500.0,0.00040821,11]
[342917767,1732204258191,-585.43,0.00040821,11]
[342917768,1732204258201,-500.0,0.00040821,11]
[342917769,1732204258211,-500.0,0.00040821,11]
[342917770,1732204258220,-500.0,0.00040821,11]
[342917771,1732204258230,-500.0,0.00040821,11]
[342917772,1732204258239,-500.0,0.00040821,11]
[342917773,1732204258248,-788.71,0.00040821,11]
[342917774,1732204258257,-500.0,0.00040821,11]
[342917775,1732204258267,-500.0,0.00040821,11]
[342917776,1732204258276,-500.0,0.00040821,11]
[342917777,1732204258285,-500.0,0.00040821,11]
[342917778,1732204258295,-500.0,0.00040821,11]
[342917779,1732204258304,-500.0,0.00040821,11]
[342917780,1732204258313,-500.0,0.00040821,11]
[342917781,1732204258323,-500.0,0.00040821,11]
[342917782,1732204258332,-500.0,0.00040821,11]
[342917783,1732204258341,-500.0,0.00040821,11]
[342917784,1732204258350,-500.0,0.00040821,11]
[342917785,1732204258359,-500.0,0.00040821,11]
[342917786,1732204258369,-500.0,0.00040821,11]
[342917787,1732204258379,-500.0,0.00040821,11]
[342917788,1732204258392,-502.31,0.00040821,11]
[342917789,1732204258401,-1392.3,0.00040821,11]
[342917790,1732204258411,-500.0,0.00040821,11]
[342917791,1732204258420,-500.0,0.00040821,11]
[342917792,1732204258429,-570.76,0.00040821,11]
[342917793,1732204258439,-500.0,0.00040821,11]
[342917794,1732204258448,-1312.58,0.00040821,11]
[342917795,1732204258458,-500.0,0.00040821,11]
[342917796,1732204258468,-9982.76,0.00040821,11]
[342917797,1732204258477,-869.92,0.00040821,11]
[342917798,1732204258487,-599.47459775,0.00040821,11]
[342917799,1732204258497,-500.0,0.00040821,11]
[342917800,1732204258506,-605.74,0.00040821,11]
[342917801,1732204258516,-2162.36,0.00040821,11]
[342917802,1732204258526,-514.62,0.00040821,11]
[342917803,1732204258535,-500.0,0.00040821,11]
[342917804,1732204258545,-903.28,0.00040821,11]
[342917805,1732204258554,-706.27,0.00040821,11]
[342917806,1732204258563,-635.73,0.00040821,11]
[342917807,1732204258573,-500.0,0.00040821,11]
[342917808,1732204258583,-1528.23,0.00040821,11]
[342917809,1732204258592,-500.0,0.00040821,11]
[342917810,1732204258601,-500.0,0.00040821,11]
[342917811,1732204258611,-500.0,0.00040821,11]
[342917812,1732204258622,-500.0,0.00040821,11]
[342917813,1732204258634,-500.0,0.00040821,11]
[342917814,1732204258644,-500.0,0.00040821,11]
[342917815,1732204258654,-500.0,0.00040821,11]
[342917816,1732204258664,-1090.43,0.00040821,11]
[342917817,1732204258673,-500.0,0.00040821,11]
[342917818,1732204258683,-500.0,0.00040821,11]
[342917819,1732204258692,-500.0,0.00040821,11]
[342917820,1732204258702,-500.0,0.00040821,11]
[342917821,1732204258712,-457.15783334,0.00040821,11]
[342917822,1732204258721,-500.0,0.00040821,11]
[342917823,1732204258731,-2907.09,0.00040821,11]
[342917824,1732204258741,-300.0,0.00040821,11]
[342917825,1732204258750,-617.69,0.00040821,11]
[342917826,1732204258760,-847.62,0.00040821,11]
[342917827,1732204258770,-500.0,0.00040821,11]
[342917828,1732204258780,-500.0,0.00040821,11]
[342917829,1732204258789,-500.0,0.00040821,11]
[342917830,1732204258799,-500.0,0.00040821,7]
[342917831,1732204258808,-500.0,0.00040821,11]
[342917832,1732204258818,-1049.63,0.00040821,11]
[342917833,1732204258827,-782.31,0.00040821,11]
[342917834,1732204258836,-500.0,0.00040821,11]
[342917835,1732204258845,-1201.62,0.00040821,11]
[342917836,1732204258854,-500.0,0.00040821,11]
[342917837,1732204258864,-500.0,0.00040821,11]
[342917838,1732204258873,-500.0,0.00040821,11]
[342917839,1732204258886,-753.49,0.00040821,11]
[342917840,1732204258896,-500.0,0.00040821,11]
[342917841,1732204258905,-500.0,0.00040821,11]
[342917842,1732204258915,-856.81,0.00040821,11]
[342917843,1732204258925,-1928.55,0.00040821,11]
[342917844,1732204258935,-500.0,0.00040821,11]
[342917845,1732204258945,-852.4,0.00040821,11]
[342917846,1732204258955,-2673.56,0.00040821,11]
[342917847,1732204258965,-578.58,0.00040821,11]
[342917848,1732204258974,-500.0,0.00040821,11]
[342917849,1732204258983,-500.0,0.00040821,11]
[342917850,1732204258993,-1196.41,0.00040821,11]
[342917851,1732204259002,-500.0,0.00040821,11]
[342917852,1732204259013,-658.66,0.00040821,11]
[342917853,1732204259022,-500.0,0.00040821,11]
[342917854,1732204259032,-1413.85,0.00040821,11]
[342917855,1732204259042,-3542.25,0.00040821,11]
[342917856,1732204259051,-500.0,0.00040821,11]
[342917857,1732204259061,-500.0,0.00040821,11]
[342917858,1732204259070,-500.0,0.00040821,11]
[342917859,1732204259079,-698.62,0.00040821,11]
[342917860,1732204259090,-500.0,0.00040821,11]
[342917861,1732204259099,-500.0,0.00040821,11]
[342917862,1732204259114,-1342.07,0.00040821,11]
[342917863,1732204259123,-2500.26,0.00040821,11]
[342917864,1732204259136,-500.0,0.00040821,11]
[342917865,1732204259146,-1062.88,0.00040821,11]
[342917866,1732204259156,-500.0,0.00040821,11]
[342917867,1732204259165,-500.0,0.00040821,11]
[342917868,1732204259175,-726.84,0.00040821,11]
[342917869,1732204259186,-500.0,0.00040821,11]
[342917870,1732204259196,-686.36,0.00040821,11]
[342917871,1732204259205,-996.28,0.00040821,11]
[342917872,1732204259215,-530.63,0.00040821,11]
[342917873,1732204259225,-500.0,0.00040821,11]
[342917874,1732204259234,-623.27,0.00040821,11]
[342917875,1732204259244,-254.15398787,0.00040821,11]
[342917876,1732204259253,-500.0,0.00040821,11]
[342917877,1732204259263,-3668.1,0.00040821,11]
[342917878,1732204259273,-903.26,0.00040821,11]
[342917879,1732204259283,-500.0,0.00040821,11]
[342917880,1732204259296,-500.0,0.00040821,11]
[342917881,1732204259305,-1214.4,0.00040821,11]
[342917882,1732204259315,-500.0,0.00040821,11]
[342917883,1732204259325,-500.0,0.00040821,11]
[342917884,1732204259335,-1131.97,0.00040821,11]
[342917885,1732204259344,-1008.95,0.00040821,11]
[342917886,1732204259354,-1747.29,0.00040821,11]
[342917887,1732204259364,-500.0,0.00040821,11]
[342917888,1732204259374,-665.4,0.00040821,11]
[342917889,1732204259387,-500.0,0.00040821,11]
[342917890,1732204259396,-500.0,0.00040821,11]
[342917891,1732204259406,-500.0,0.00040821,11]
[342917892,1732204259415,-530.21,0.00040821,11]
[342917893,1732204259425,-1798.83,0.00040821,11]
[342917894,1732204259435,-2143.77,0.00040821,11]
[342917895,1732204259444,-1113.58,0.00040821,11]
[342917896,1732204259455,-500.0,0.00040821,11]
[342917897,1732204259464,-7402.61,0.00040821,2]
[342917898,1732204259474,-428.37466799,0.00040821,11]
[342917899,1732204259484,-11365.11,0.00040821,11]
[342917900,1732204259494,-631.63,0.00040821,11]
[342917901,1732204259504,-2155.58,0.00040821,11]
[342917902,1732204259514,-188.55541682,0.00040821,11]
[342917903,1732204259524,-2662.78381456,0.00040864,15]
[342917904,1732204259534,-1800.0,0.000409,14]
[342917905,1732204259544,-154.0,0.00040952,2]
[342917906,1732204259554,-1000.0,0.00040994,2]
[342917907,1732204259564,-757.53,0.00040994,11]
[342917908,1732204259574,-834.77,0.00040994,11]
[342917909,1732204259584,-3232.87,0.00040994,11]
[342917910,1732204259594,-1538.07,0.00040994,11]
[342917911,1732204259604,-705.86,0.00040994,11]
[342917912,1732204259614,-500.0,0.00040994,11]
[342917913,1732204259624,-1284.92,0.00040994,11]
[342917914,1732204259635,-500.0,0.00040994,11]
[342917915,1732204259645,-950.09,0.00040994,11]
[342917916,1732204259655,-1031.75,0.00040994,11]
[342917917,1732204259664,-9838.6389,0.00040995,2]
[342917918,1732204259674,-433.9473,0.00040995,2]
[342917919,1732204259684,-1475.6878,0.00040995,2]
[342917920,1732204259693,-157.3949,0.00040995,2]
[342917921,1732204259703,-500.0,0.00040995,2]
[342917922,1732204259713,-37917.8112,0.00040995,2]
[342917923,1732204259723,-48587.3913,0.00040995,2]
[342917924,1732204259733,-1000.0,0.00040995,2]
[342917925,1732204259743,-421878.91493481,0.00040995,2]
[342917926,1732204259761,-1921.48,0.00040995,2]
[342917927,1732204259926,-500.0,0.00038356,11]
[342917928,1732204259936,-647.86097387,0.00038356,11]
[342917929,1732204259945,-500.0,0.00038356,11]
[342917930,1732204259954,-274.96489053,0.00038629,11]
[342917931,1732204259966,-225.03510947,0.00038629,11]
[342917932,1732204259975,-500.0,0.0003863,11]
[342917933,1732204259984,-500.0,0.00038903,11]
[342917934,1732204259994,-601.88,0.00038904,11]
[342917935,1732204260004,-500.0,0.00039999,11]
[342917936,1732204260015,-500.0,0.00040273,11]
[342917937,1732204260024,-54810.59598473,0.00040995,2]
[342917938,1732204260036,-575.978715,0.00040995,2]
[342917939,1732204260048,-197644.46046546,0.00040995,2]
[342917940,1732204260058,-50000.0,0.00041,13]
[342917941,1732204260068,-50000.0,0.00041,23]
[342917942,1732204260078,-50000.0,0.00041,33]